[Event "Early-Titled-Tuesday-Blitz-November-28-2023"]
[Site "Chess.com"]
[Date "2023.11.28"]
[Round "6"]
[White "Kirill_Klukin"]
[Black "Timerkhanov"]
[Result "1-0"]
[WhiteElo "2858"]
[BlackElo "2686"]
[TimeControl "180+1"]
[EndTime "9:14:36 PST"]
[Termination "Kirill_Klukin won on time"]

1. d4 {[%clk 0:03:00.9]} 1... d5 {[%clk 0:02:59.4]} 2. c4 {[%clk 0:03:00.8]}
2... c6 {[%clk 0:03:00.1]} 3. Nc3 {[%clk 0:03:00.9]} 3... Nf6 {[%clk 0:03:00.6]}
4. Nf3 {[%clk 0:03:01.4]} 4... dxc4 {[%clk 0:03:00.2]} 5. e3 {[%clk 0:03:01.7]}
5... Be6 {[%clk 0:02:58.4]} 6. Ne5 {[%clk 0:02:50.5]} 6... Nbd7 {[%clk
0:02:56.3]} 7. Nxc4 {[%clk 0:02:44.1]} 7... g6 {[%clk 0:02:56.5]} 8. Be2 {[%clk
0:02:42.5]} 8... Bg7 {[%clk 0:02:56.7]} 9. O-O {[%clk 0:02:43.2]} 9... O-O
{[%clk 0:02:57]} 10. b3 {[%clk 0:02:38.5]} 10... c5 {[%clk 0:02:54.2]} 11. Bb2
{[%clk 0:02:26.7]} 11... cxd4 {[%clk 0:02:53.5]} 12. Qxd4 {[%clk 0:02:18]} 12...
Nd5 {[%clk 0:02:42.5]} 13. Qd2 {[%clk 0:02:11.1]} 13... Nxc3 {[%clk 0:02:39.1]}
14. Bxc3 {[%clk 0:02:12]} 14... Bxc3 {[%clk 0:02:38.6]} 15. Qxc3 {[%clk
0:02:12.9]} 15... Rc8 {[%clk 0:02:38.4]} 16. Qd4 {[%clk 0:02:04.1]} 16... b5
{[%clk 0:02:29.9]} 17. Ne5 {[%clk 0:01:51.4]} 17... Nxe5 {[%clk 0:02:23.3]} 18.
Qxe5 {[%clk 0:01:52.3]} 18... b4 {[%clk 0:02:23.7]} 19. h4 {[%clk 0:01:45.5]}
19... Qc7 {[%clk 0:02:21.5]} 20. Qd4 {[%clk 0:01:42.2]} 20... Qc5 {[%clk
0:02:21.3]} 21. Qf4 {[%clk 0:01:42.2]} 21... Rfd8 {[%clk 0:02:11.8]} 22. Bf3
{[%clk 0:01:35.3]} 22... Rd2 {[%clk 0:01:59.2]} 23. Rac1 {[%clk 0:01:07.7]}
23... Qxc1 {[%clk 0:01:47.6]} 24. Rxc1 {[%clk 0:01:08.6]} 24... Rxc1+ {[%clk
0:01:47.2]} 25. Kh2 {[%clk 0:01:09.4]} 25... h5 {[%clk 0:01:35.4]} 26. Qxb4
{[%clk 0:01:01.1]} 26... Rxf2 {[%clk 0:01:32.1]} 27. Qb8+ {[%clk 0:00:51.8]}
27... Kh7 {[%clk 0:01:29.7]} 28. Qxa7 {[%clk 0:00:52]} 28... Rcc2 {[%clk
0:01:06.3]} 29. Kg3 {[%clk 0:00:50.2]} 29... Rxa2 {[%clk 0:01:02.1]} 30. Qxe7
{[%clk 0:00:37.1]} 30... Bxb3 {[%clk 0:01:00]} 31. Be4 {[%clk 0:00:29.8]} 31...
Be6 {[%clk 0:00:54.3]} 32. Qc5 {[%clk 0:00:19.4]} 32... Bf5 {[%clk 0:00:42.3]}
33. Bf3 {[%clk 0:00:16.9]} 33... Be6 {[%clk 0:00:41.2]} 34. Qd4 {[%clk
0:00:13.4]} 34... Rfd2 {[%clk 0:00:39.7]} 35. Qc5 {[%clk 0:00:10.5]} 35... Rac2
{[%clk 0:00:38.2]} 36. Qe5 {[%clk 0:00:08.6]} 36... Rb2 {[%clk 0:00:33.2]} 37.
Qc3 {[%clk 0:00:07.1]} 37... Rbc2 {[%clk 0:00:32.6]} 38. Qe5 {[%clk 0:00:07.2]}
38... Rb2 {[%clk 0:00:33.2]} 39. Be4 {[%clk 0:00:07.7]} 39... Kg8 {[%clk
0:00:30.4]} 40. Qf6 {[%clk 0:00:05.5]} 40... Re2 {[%clk 0:00:29.5]} 41. Qd4
{[%clk 0:00:03.1]} 41... Rbd2 {[%clk 0:00:27.7]} 42. Qc5 {[%clk 0:00:02.9]}
42... Bf5 {[%clk 0:00:18.7]} 43. Bf3 {[%clk 0:00:03.4]} 43... Rf2 {[%clk
0:00:17.1]} 44. Qe5 {[%clk 0:00:03.8]} 44... Be6 {[%clk 0:00:16.4]} 45. Qc5
{[%clk 0:00:03.7]} 45... Bg4 {[%clk 0:00:14.6]} 46. Qe7 {[%clk 0:00:02.8]} 46...
Bxf3 {[%clk 0:00:14.2]} 47. gxf3 {[%clk 0:00:03.7]} 47... Rg2+ {[%clk 0:00:14]}
48. Kf4 {[%clk 0:00:04.3]} 48... Rh2 {[%clk 0:00:13.2]} 49. Qe8+ {[%clk
0:00:04.5]} 49... Kg7 {[%clk 0:00:13.3]} 50. Qe5+ {[%clk 0:00:05.3]} 50... Kg8
{[%clk 0:00:13.3]} 51. Qe8+ {[%clk 0:00:05.8]} 51... Kg7 {[%clk 0:00:13.8]} 52.
Qe5+ {[%clk 0:00:06.5]} 52... Kg8 {[%clk 0:00:14]} 53. Qf6 {[%clk 0:00:07]}
53... Ra2 {[%clk 0:00:11.4]} 54. Kg5 {[%clk 0:00:07.4]} 54... Kf8 {[%clk
0:00:01.9]} 55. Qh8+ {[%clk 0:00:07.6]} 55... Ke7 {[%clk 0:00:01.9]} 56. Qe5+
{[%clk 0:00:07.9]} 56... Kf8 {[%clk 0:00:02.1]} 57. Kh6 {[%clk 0:00:07.6]} 57...
Rhb2 {[%clk 0:00:01.9]} 58. Qh8+ {[%clk 0:00:07.6]} 58... Ke7 {[%clk 0:00:01.5]}
59. Qe5+ {[%clk 0:00:08.3]} 59... Kf8 {[%clk 0:00:01.7]} 60. Qg7+ {[%clk
0:00:08.8]} 60... Ke7 {[%clk 0:00:02.2]} 61. Qd4 {[%clk 0:00:08.4]} 61... Rd2
{[%clk 0:00:01.5]} 62. Qe5+ {[%clk 0:00:07.8]} 62... Kf8 {[%clk 0:00:01.8]} 63.
Kh7 {[%clk 0:00:08.1]} 63... Rac2 {[%clk 0:00:01.4]} 64. Qh8+ {[%clk 0:00:08.3]}
64... Ke7 {[%clk 0:00:01.3]} 65. Qe5+ {[%clk 0:00:09.1]} 65... Kf8 {[%clk
0:00:01.8]} 66. Qb8+ {[%clk 0:00:08.3]} 66... Ke7 {[%clk 0:00:01.4]} 67. Qb4+
{[%clk 0:00:09]} 1-0

[Event "Early-Titled-Tuesday-Blitz-November-28-2023"]
[Site "Chess.com"]
[Date "2023.11.28"]
[Round "6"]
[White "carloseduar100"]
[Black "katharinareinecke"]
[Result "1/2-1/2"]
[WhiteElo "2286"]
[BlackElo "1998"]
[TimeControl "180+1"]
[EndTime "9:14:36 PST"]
[Termination "Game drawn - insufficient material"]

1. d4 {[%clk 0:03:00.1]} 1... d5 {[%clk 0:02:59.1]} 2. c3 {[%clk 0:03:00.3]}
2... Nf6 {[%clk 0:02:57.7]} 3. Bg5 {[%clk 0:03:00.7]} 3... e6 {[%clk 0:02:56.9]}
4. Nd2 {[%clk 0:03:00.9]} 4... Be7 {[%clk 0:02:55.8]} 5. e3 {[%clk 0:03:00.5]}
5... O-O {[%clk 0:02:55.7]} 6. Bd3 {[%clk 0:03:01.2]} 6... h6 {[%clk 0:02:54.2]}
7. Bh4 {[%clk 0:03:01.4]} 7... Nbd7 {[%clk 0:02:52.4]} 8. f4 {[%clk 0:03:01.7]}
8... c5 {[%clk 0:02:52]} 9. Ngf3 {[%clk 0:03:01.7]} 9... a6 {[%clk 0:02:49]} 10.
O-O {[%clk 0:03:01.9]} 10... b5 {[%clk 0:02:48.9]} 11. a3 {[%clk 0:03:02]} 11...
Bb7 {[%clk 0:02:43.8]} 12. Ne5 {[%clk 0:03:02.2]} 12... Ne4 {[%clk 0:02:38.1]}
13. Bxe4 {[%clk 0:02:51.3]} 13... dxe4 {[%clk 0:02:37.7]} 14. Bf2 {[%clk
0:02:50.5]} 14... Nb6 {[%clk 0:02:08.7]} 15. Qh5 {[%clk 0:02:46.5]} 15... Bf6
{[%clk 0:01:52.7]} 16. g4 {[%clk 0:02:46.2]} 16... Bxe5 {[%clk 0:01:49.2]} 17.
fxe5 {[%clk 0:02:46.5]} 17... f6 {[%clk 0:01:44.5]} 18. Bg3 {[%clk 0:02:45]}
18... Nd7 {[%clk 0:01:39.9]} 19. exf6 {[%clk 0:02:44.2]} 19... Nxf6 {[%clk
0:01:39.7]} 20. Qxc5 {[%clk 0:02:44.1]} 20... Nxg4 {[%clk 0:01:36.5]} 21. Bd6
{[%clk 0:02:21.6]} 21... Rxf1+ {[%clk 0:01:33.4]} 22. Rxf1 {[%clk 0:02:17]}
22... Qg5 {[%clk 0:01:31.2]} 23. Bf4 {[%clk 0:02:14.1]} 23... Qxc5 {[%clk
0:01:08.9]} 24. dxc5 {[%clk 0:02:15]} 24... Rd8 {[%clk 0:01:06]} 25. Bd6 {[%clk
0:02:06.2]} 25... Nxe3 {[%clk 0:01:02.9]} 26. Re1 {[%clk 0:02:06.8]} 26... Nc4
{[%clk 0:00:59.1]} 27. Nxe4 {[%clk 0:02:07]} 27... Bxe4 {[%clk 0:00:57.3]} 28.
Rxe4 {[%clk 0:02:05.8]} 28... Nxd6 {[%clk 0:00:57.1]} 29. cxd6 {[%clk
0:02:04.7]} 29... Rxd6 {[%clk 0:00:57.3]} 30. a4 {[%clk 0:02:02.8]} 30... bxa4
{[%clk 0:00:56.1]} 31. Rxa4 {[%clk 0:02:02.9]} 31... Kf7 {[%clk 0:00:55.6]} 32.
b4 {[%clk 0:01:54.2]} 32... Rd1+ {[%clk 0:00:47.9]} 33. Kf2 {[%clk 0:01:54.4]}
33... Rc1 {[%clk 0:00:48.1]} 34. Ra3 {[%clk 0:01:52.2]} 34... Rc2+ {[%clk
0:00:46.8]} 35. Ke3 {[%clk 0:01:52.5]} 35... Rxh2 {[%clk 0:00:46.2]} 36. Rxa6
{[%clk 0:01:53.1]} 36... e5 {[%clk 0:00:39]} 37. b5 {[%clk 0:01:50.4]} 37...
Rh3+ {[%clk 0:00:38.4]} 38. Kd2 {[%clk 0:01:48]} 38... Rh2+ {[%clk 0:00:32.9]}
39. Kd3 {[%clk 0:01:47.3]} 39... Rb2 {[%clk 0:00:31.1]} 40. c4 {[%clk 0:01:45]}
40... h5 {[%clk 0:00:30.5]} 41. Ke4 {[%clk 0:01:43.1]} 41... h4 {[%clk
0:00:20.8]} 42. Kxe5 {[%clk 0:01:40]} 42... h3 {[%clk 0:00:20.7]} 43. Ra1 {[%clk
0:01:38.2]} 43... h2 {[%clk 0:00:20.3]} 44. Kf4 {[%clk 0:01:36]} 44... Rb4
{[%clk 0:00:19.6]} 45. Kg3 {[%clk 0:01:13.2]} 45... Rxc4 {[%clk 0:00:19.5]} 46.
Rb1 {[%clk 0:01:13.6]} 46... Rc8 {[%clk 0:00:16.3]} 47. Kxh2 {[%clk 0:01:13.5]}
47... Rb8 {[%clk 0:00:16.5]} 48. Kg3 {[%clk 0:01:13.7]} 48... Ke7 {[%clk
0:00:16.8]} 49. Kf4 {[%clk 0:01:14.1]} 49... Kd6 {[%clk 0:00:17.1]} 50. Ke4
{[%clk 0:01:09.6]} 50... Kc5 {[%clk 0:00:17.2]} 51. Rc1+ {[%clk 0:01:10.1]}
51... Kb6 {[%clk 0:00:16.4]} 52. Kf5 {[%clk 0:01:05.8]} 52... Rb7 {[%clk
0:00:15.6]} 53. Rb1 {[%clk 0:01:04.8]} 53... Rc7 {[%clk 0:00:14.8]} 54. Kg6
{[%clk 0:01:04.5]} 54... Rc5 {[%clk 0:00:14.4]} 55. Kxg7 {[%clk 0:01:04.5]}
55... Rxb5 {[%clk 0:00:14.7]} 56. Ra1 {[%clk 0:01:04.2]} 56... Kc5 {[%clk
0:00:14.6]} 57. Kf6 {[%clk 0:01:04.1]} 57... Kc4 {[%clk 0:00:14.2]} 58. Ke6
{[%clk 0:01:04.1]} 58... Kd3 {[%clk 0:00:14.4]} 59. Kd6 {[%clk 0:01:02.2]} 59...
Ke3 {[%clk 0:00:14.2]} 60. Kc6 {[%clk 0:01:00.3]} 60... Rh5 {[%clk 0:00:14.2]}
61. Rd1 {[%clk 0:01:00.6]} 61... Rg5 {[%clk 0:00:13.5]} 62. Kd6 {[%clk
0:01:00.4]} 62... Kf3 {[%clk 0:00:13.8]} 63. Ke6 {[%clk 0:01:00.5]} 63... Ra5
{[%clk 0:00:13.7]} 64. Re1 {[%clk 0:01:00.7]} 64... Kf4 {[%clk 0:00:13.7]} 65.
Kd6 {[%clk 0:01:00.5]} 65... Kf5 {[%clk 0:00:13.2]} 66. Re2 {[%clk 0:00:59]}
66... Kf4 {[%clk 0:00:13.4]} 67. Re8 {[%clk 0:00:58.5]} 67... Kf5 {[%clk
0:00:13.4]} 68. Kc6 {[%clk 0:00:58.7]} 68... Kf4 {[%clk 0:00:12.7]} 69. Kb6
{[%clk 0:00:59.1]} 69... Rh5 {[%clk 0:00:12.6]} 70. Kc6 {[%clk 0:00:58.4]} 70...
Kf3 {[%clk 0:00:12.7]} 71. Kd7 {[%clk 0:00:56.3]} 71... Kf4 {[%clk 0:00:13.1]}
72. Rf8+ {[%clk 0:00:56.2]} 72... Ke4 {[%clk 0:00:12.6]} 73. Rf1 {[%clk
0:00:56.2]} 73... Kd4 {[%clk 0:00:12.8]} 74. Ke6 {[%clk 0:00:55.3]} 74... Kc4
{[%clk 0:00:12.9]} 75. Rc1+ {[%clk 0:00:54.1]} 75... Kd4 {[%clk 0:00:13.1]} 76.
Rd1+ {[%clk 0:00:54.4]} 76... Kc4 {[%clk 0:00:13.5]} 77. Rd7 {[%clk 0:00:54]}
77... Kc5 {[%clk 0:00:11.6]} 78. Rd2 {[%clk 0:00:51.7]} 78... Kc4 {[%clk
0:00:12]} 79. Kf6 {[%clk 0:00:51.3]} 79... Kc3 {[%clk 0:00:12.1]} 80. Rf2 {[%clk
0:00:51.2]} 80... Ra5 {[%clk 0:00:11.9]} 81. Kg6 {[%clk 0:00:51.5]} 81... Kd4
{[%clk 0:00:12.2]} 82. Rf4+ {[%clk 0:00:49.8]} 82... Kc3 {[%clk 0:00:10.6]} 83.
Rf5 {[%clk 0:00:50]} 83... Rxf5 {[%clk 0:00:09.6]} 84. Kxf5 {[%clk 0:00:50.9]}
1/2-1/2

[Event "Early-Titled-Tuesday-Blitz-November-28-2023"]
[Site "Chess.com"]
[Date "2023.11.28"]
[Round "6"]
[White "Goryachkina"]
[Black "ilushka"]
[Result "0-1"]
[WhiteElo "2610"]
[BlackElo "2423"]
[TimeControl "180+1"]
[EndTime "9:14:38 PST"]
[Termination "ilushka won on time"]

1. e4 {[%clk 0:03:00.1]} 1... e5 {[%clk 0:02:59]} 2. Nf3 {[%clk 0:02:58.9]} 2...
Nc6 {[%clk 0:02:59.5]} 3. Bc4 {[%clk 0:02:58.5]} 3... Nf6 {[%clk 0:02:59.3]} 4.
d3 {[%clk 0:02:58.3]} 4... Bc5 {[%clk 0:02:58.9]} 5. c3 {[%clk 0:02:55.7]} 5...
O-O {[%clk 0:02:53.7]} 6. O-O {[%clk 0:02:51]} 6... d6 {[%clk 0:02:51.5]} 7.
Nbd2 {[%clk 0:02:49.3]} 7... a5 {[%clk 0:02:48.7]} 8. Bb3 {[%clk 0:02:45.6]}
8... h6 {[%clk 0:02:35.7]} 9. h3 {[%clk 0:02:45.4]} 9... Be6 {[%clk 0:02:34.3]}
10. Ba4 {[%clk 0:02:45.1]} 10... Ne7 {[%clk 0:02:29.3]} 11. d4 {[%clk
0:02:43.5]} 11... exd4 {[%clk 0:02:29]} 12. cxd4 {[%clk 0:02:43.4]} 12... Bb6
{[%clk 0:02:29]} 13. Re1 {[%clk 0:02:38.9]} 13... Ng6 {[%clk 0:02:23.7]} 14. Nf1
{[%clk 0:02:32.7]} 14... d5 {[%clk 0:02:20.1]} 15. e5 {[%clk 0:02:32.8]} 15...
Ne4 {[%clk 0:02:20.1]} 16. Bc2 {[%clk 0:02:32.8]} 16... f5 {[%clk 0:02:03.6]}
17. Be3 {[%clk 0:02:06.4]} 17... Nh4 {[%clk 0:01:44.9]} 18. Nxh4 {[%clk
0:01:58.3]} 18... Qxh4 {[%clk 0:01:45.8]} 19. f3 {[%clk 0:01:44.4]} 19... f4
{[%clk 0:01:39.3]} 20. fxe4 {[%clk 0:01:29.5]} 20... fxe3 {[%clk 0:01:39.5]} 21.
Nxe3 {[%clk 0:01:03.5]} 21... dxe4 {[%clk 0:01:20.1]} 22. Bb3 {[%clk 0:00:34.7]}
22... Qf2+ {[%clk 0:00:54.4]} 23. Kh1 {[%clk 0:00:33.1]} 23... Bxb3 {[%clk
0:00:55]} 24. Qxb3+ {[%clk 0:00:32.3]} 24... Kh8 {[%clk 0:00:47.3]} 25. Rf1
{[%clk 0:00:32.4]} 25... Qd2 {[%clk 0:00:46.5]} 26. Nc4 {[%clk 0:00:25.2]} 26...
Qxd4 {[%clk 0:00:44.4]} 27. Nxb6 {[%clk 0:00:24.1]} 27... cxb6 {[%clk
0:00:31.9]} 28. e6 {[%clk 0:00:21.1]} 28... Rae8 {[%clk 0:00:20.5]} 29. Rxf8+
{[%clk 0:00:15.6]} 29... Rxf8 {[%clk 0:00:20.5]} 30. e7 {[%clk 0:00:10.4]} 30...
Re8 {[%clk 0:00:20.7]} 31. Qe6 {[%clk 0:00:07.1]} 31... Qb4 {[%clk 0:00:18.5]}
32. Rf1 {[%clk 0:00:05.5]} 32... Qxe7 {[%clk 0:00:18]} 33. Qxb6 {[%clk
0:00:04.4]} 33... e3 {[%clk 0:00:17.8]} 34. Re1 {[%clk 0:00:04.3]} 34... Qb4
{[%clk 0:00:16.8]} 35. Qxb4 {[%clk 0:00:04.2]} 35... axb4 {[%clk 0:00:17.7]} 36.
Re2 {[%clk 0:00:04.8]} 36... g5 {[%clk 0:00:17.1]} 37. Kh2 {[%clk 0:00:05.1]}
37... Kg7 {[%clk 0:00:17.5]} 38. Kg3 {[%clk 0:00:05.6]} 38... Kf6 {[%clk
0:00:16.6]} 39. Kf3 {[%clk 0:00:06.1]} 39... Kf5 {[%clk 0:00:16.5]} 40. g4+
{[%clk 0:00:06.3]} 40... Kf6 {[%clk 0:00:15.7]} 41. Rxe3 {[%clk 0:00:06.7]}
41... Rxe3+ {[%clk 0:00:16.4]} 42. Kxe3 {[%clk 0:00:07.1]} 42... Ke5 {[%clk
0:00:17.3]} 43. b3 {[%clk 0:00:05.8]} 43... b5 {[%clk 0:00:15.9]} 44. Kd3 {[%clk
0:00:06]} 44... Kf4 {[%clk 0:00:16.3]} 45. Kd4 {[%clk 0:00:06.6]} 45... Kg3
{[%clk 0:00:16.5]} 46. Kc5 {[%clk 0:00:07.2]} 46... Kxh3 {[%clk 0:00:17.1]} 47.
Kxb4 {[%clk 0:00:07.7]} 47... Kxg4 {[%clk 0:00:16.5]} 48. a4 {[%clk 0:00:07.2]}
48... bxa4 {[%clk 0:00:15.6]} 49. bxa4 {[%clk 0:00:08.1]} 49... Kh3 {[%clk
0:00:04.9]} 50. a5 {[%clk 0:00:08.4]} 50... g4 {[%clk 0:00:05.8]} 51. a6 {[%clk
0:00:08.8]} 51... g3 {[%clk 0:00:06.7]} 52. a7 {[%clk 0:00:09.2]} 52... g2
{[%clk 0:00:07.1]} 53. a8=Q {[%clk 0:00:09.7]} 53... g1=Q {[%clk 0:00:07.5]} 54.
Qh8 {[%clk 0:00:05.4]} 54... Qg4+ {[%clk 0:00:06]} 55. Kb3 {[%clk 0:00:03.7]}
55... h5 {[%clk 0:00:06.9]} 56. Qf6 {[%clk 0:00:02]} 56... h4 {[%clk 0:00:05.8]}
57. Qf1+ {[%clk 0:00:02]} 57... Qg2 {[%clk 0:00:05.5]} 58. Qf5+ {[%clk
0:00:02.1]} 58... Qg4 {[%clk 0:00:04.5]} 59. Qf1+ {[%clk 0:00:02.1]} 59... Kh2
{[%clk 0:00:05.1]} 60. Ka3 {[%clk 0:00:01.4]} 60... Qg2 {[%clk 0:00:04]} 61. Qf5
{[%clk 0:00:01]} 61... h3 {[%clk 0:00:03.6]} 0-1

[Event "Early-Titled-Tuesday-Blitz-November-28-2023"]
[Site "Chess.com"]
[Date "2023.11.28"]
[Round "6"]
[White "Azerichess"]
[Black "vugarrasulov"]
[Result "1-0"]
[WhiteElo "3061"]
[BlackElo "2920"]
[TimeControl "180+1"]
[EndTime "9:14:43 PST"]
[Termination "Azerichess won by resignation"]

1. Nf3 {[%clk 0:03:00.9]} 1... Nf6 {[%clk 0:03:00.3]} 2. c4 {[%clk 0:03:00.6]}
2... e6 {[%clk 0:02:59.4]} 3. e3 {[%clk 0:02:58.3]} 3... d5 {[%clk 0:02:56.4]}
4. b3 {[%clk 0:02:58.3]} 4... g6 {[%clk 0:02:54.5]} 5. Bb2 {[%clk 0:02:57.3]}
5... Bg7 {[%clk 0:02:55.1]} 6. Nc3 {[%clk 0:02:57.8]} 6... O-O {[%clk
0:02:54.8]} 7. d4 {[%clk 0:02:58]} 7... b6 {[%clk 0:02:51.3]} 8. Rc1 {[%clk
0:02:52.4]} 8... Bb7 {[%clk 0:02:50.3]} 9. cxd5 {[%clk 0:02:52.5]} 9... exd5
{[%clk 0:02:50.2]} 10. Be2 {[%clk 0:02:49.5]} 10... a6 {[%clk 0:02:48.6]} 11.
O-O {[%clk 0:02:50]} 11... Nbd7 {[%clk 0:02:48.9]} 12. Ne5 {[%clk 0:02:47.3]}
12... Re8 {[%clk 0:02:41.1]} 13. f4 {[%clk 0:02:47.5]} 13... c5 {[%clk
0:02:34.5]} 14. Kh1 {[%clk 0:02:45.9]} 14... Rc8 {[%clk 0:02:34]} 15. Bf3 {[%clk
0:02:32]} 15... cxd4 {[%clk 0:02:31.4]} 16. exd4 {[%clk 0:02:32.9]} 16... Ne4
{[%clk 0:02:29.1]} 17. Na4 {[%clk 0:02:21.3]} 17... b5 {[%clk 0:02:13.8]} 18.
Nc3 {[%clk 0:02:05.6]} 18... Ndf6 {[%clk 0:02:03.1]} 19. f5 {[%clk 0:01:52.2]}
19... b4 {[%clk 0:01:29.7]} 20. fxg6 {[%clk 0:01:44.4]} 20... hxg6 {[%clk
0:01:29.5]} 21. Nxe4 {[%clk 0:01:39.8]} 21... dxe4 {[%clk 0:01:29]} 22. Be2
{[%clk 0:01:40.2]} 22... a5 {[%clk 0:01:22.5]} 23. Rxc8 {[%clk 0:01:37.3]} 23...
Bxc8 {[%clk 0:01:22.5]} 24. Bc4 {[%clk 0:01:37.7]} 24... Be6 {[%clk 0:01:22.9]}
25. Qe2 {[%clk 0:01:25.9]} 25... Qd6 {[%clk 0:01:09.5]} 26. Qe3 {[%clk
0:01:19.9]} 26... a4 {[%clk 0:01:04.5]} 27. h3 {[%clk 0:01:08.5]} 27... a3
{[%clk 0:01:04.2]} 28. Ba1 {[%clk 0:01:02.7]} 28... Re7 {[%clk 0:00:59.8]} 29.
Qg5 {[%clk 0:00:59.3]} 29... Nd5 {[%clk 0:00:54]} 30. Qh4 {[%clk 0:00:40.2]}
30... e3 {[%clk 0:00:47.4]} 31. Re1 {[%clk 0:00:36.5]} 31... Rc7 {[%clk
0:00:41.7]} 32. Qe4 {[%clk 0:00:31.2]} 32... Re7 {[%clk 0:00:32.2]} 33. Qf3
{[%clk 0:00:30.7]} 33... Bxe5 {[%clk 0:00:28.4]} 34. dxe5 {[%clk 0:00:30.7]}
34... Qc5 {[%clk 0:00:29.2]} 35. Qe4 {[%clk 0:00:28]} 35... Nc3 {[%clk
0:00:25.5]} 36. Bxc3 {[%clk 0:00:25.8]} 36... bxc3 {[%clk 0:00:26.4]} 37. Qxe3
{[%clk 0:00:21.8]} 37... Qxe3 {[%clk 0:00:25.2]} 38. Rxe3 {[%clk 0:00:22.7]}
38... Bxc4 {[%clk 0:00:19.8]} 39. bxc4 {[%clk 0:00:22.4]} 39... c2 {[%clk
0:00:17]} 40. Rc3 {[%clk 0:00:22.6]} 40... Rxe5 {[%clk 0:00:13.1]} 41. Rxc2
{[%clk 0:00:23.2]} 41... Kf8 {[%clk 0:00:13.9]} 42. Kg1 {[%clk 0:00:22.9]} 42...
Ke7 {[%clk 0:00:13.9]} 43. Kf2 {[%clk 0:00:23.3]} 43... Kd6 {[%clk 0:00:14.7]}
44. Rc3 {[%clk 0:00:23.4]} 44... Kc5 {[%clk 0:00:14.8]} 45. Rxa3 {[%clk
0:00:23]} 45... Kxc4 {[%clk 0:00:15.5]} 46. Re3 {[%clk 0:00:21.4]} 46... Ra5
{[%clk 0:00:14.4]} 47. a3 {[%clk 0:00:22]} 47... Kd4 {[%clk 0:00:14.6]} 48. Ke2
{[%clk 0:00:21.1]} 48... Rb5 {[%clk 0:00:14.3]} 49. Rd3+ {[%clk 0:00:20.6]}
49... Ke4 {[%clk 0:00:14.8]} 50. Re3+ {[%clk 0:00:21]} 50... Kd4 {[%clk
0:00:15.5]} 51. Rf3 {[%clk 0:00:20.4]} 51... Rb2+ {[%clk 0:00:14.7]} 52. Kf1
{[%clk 0:00:20.8]} 52... f5 {[%clk 0:00:15.6]} 53. Rg3 {[%clk 0:00:19]} 53...
Rb1+ {[%clk 0:00:10.7]} 54. Kf2 {[%clk 0:00:19.4]} 54... Rb2+ {[%clk 0:00:11.3]}
55. Kg1 {[%clk 0:00:20]} 55... Ra2 {[%clk 0:00:09.4]} 56. Rxg6 {[%clk
0:00:18.3]} 56... Rxa3 {[%clk 0:00:10.1]} 57. Re6 {[%clk 0:00:18.7]} 57... f4
{[%clk 0:00:08.1]} 58. Kf2 {[%clk 0:00:17.9]} 58... Rb3 {[%clk 0:00:07.9]} 59.
h4 {[%clk 0:00:17.9]} 59... Rg3 {[%clk 0:00:07]} 60. h5 {[%clk 0:00:17.5]} 60...
Rg5 {[%clk 0:00:07.5]} 61. h6 {[%clk 0:00:17.9]} 61... Kd5 {[%clk 0:00:08.1]}
62. Ra6 {[%clk 0:00:17.9]} 62... Rg8 {[%clk 0:00:05.8]} 63. Kf3 {[%clk
0:00:15.9]} 63... Ke5 {[%clk 0:00:06.4]} 64. Ra4 {[%clk 0:00:11.4]} 64... Rg3+
{[%clk 0:00:05.6]} 65. Kf2 {[%clk 0:00:11]} 65... Rg6 {[%clk 0:00:06.5]} 66.
Ra5+ {[%clk 0:00:10.9]} 66... Ke4 {[%clk 0:00:06.9]} 67. Rh5 {[%clk 0:00:10.3]}
67... Rg8 {[%clk 0:00:07.2]} 68. h7 {[%clk 0:00:10.6]} 68... Rh8 {[%clk
0:00:07.4]} 69. Ke2 {[%clk 0:00:11.1]} 69... f3+ {[%clk 0:00:04.9]} 70. gxf3+
{[%clk 0:00:11.3]} 70... Kf4 {[%clk 0:00:05.8]} 71. Kf2 {[%clk 0:00:11.2]} 71...
Rd8 {[%clk 0:00:03.2]} 72. Rh4+ {[%clk 0:00:11.3]} 72... Kg5 {[%clk 0:00:03.2]}
73. h8=Q {[%clk 0:00:11.6]} 1-0